fUSD/lending_fUSD_20240327
["ID","MTS","AMOUNT","RATE_DAILY","PERIOD"]
[320756183,1711546256485,-500.0,0.00055342,120]
[320756184,1711546256495,-500.0,0.00055342,120]
[320756185,1711546256506,-500.0,0.00055342,120]
[320756186,1711546256516,-1486.24,0.00055342,120]
[320756187,1711546256526,-1283.94,0.00055342,120]
[320756188,1711546256536,-500.0,0.00055342,120]
[320756189,1711546256545,-500.0,0.00055342,120]
[320756190,1711546256555,-913.76,0.00055342,120]
[320756191,1711546256564,-3721.37,0.00055342,120]
[320756192,1711546256574,-754.35,0.00055342,120]
[320756193,1711546256583,-500.0,0.00055342,120]
[320756194,1711546256593,-500.0,0.00055342,120]
[320756195,1711546256602,-3330.84002479,0.00055342,120]
[320756196,1711546256905,-435.045,0.00055342,120]
[320756197,1711546257710,-17330.64768704,0.00043698,2]
[320756198,1711546257720,-548.50855206,0.00054794,120]
[320756199,1711546257732,-242.18144794,0.00054794,120]
[320756200,1711546257741,-500.0,0.00054794,120]
[320756201,1711546257751,-790.69,0.00055068,120]
[320756202,1711546257761,-500.0,0.00055068,120]
[320756203,1711546257770,-18107.54497521,0.00055342,120]
[320756204,1711546257780,-1916.66,0.00055342,120]
[320756205,1711546257790,-860.18,0.00055342,120]
[320756206,1711546257798,-500.0,0.00055342,120]
[320756207,1711546257808,-500.0,0.00055342,120]
[320756208,1711546257817,-2119.71,0.00055342,120]
[320756209,1711546257827,-822.03,0.00055342,120]
[320756210,1711546257836,-500.0,0.00055342,120]
[320756211,1711546257846,-500.0,0.00055342,120]
[320756212,1711546257856,-619.23,0.00055342,120]
[320756213,1711546257868,-500.0,0.00055342,120]
[320756214,1711546257877,-500.0,0.00055342,120]
[320756215,1711546257888,-1003.22,0.00055342,120]
[320756216,1711546257897,-682.74,0.00055342,120]
[320756217,1711546257907,-500.0,0.00055342,120]
[320756218,1711546257916,-500.0,0.00055342,120]
[320756219,1711546257926,-4248.24,0.00055342,120]
[320756220,1711546257935,-52410.75,0.00055342,120]
[320756221,1711546257945,-1019.67,0.00055342,120]
[320756222,1711546257954,-3268.76,0.00055342,120]
[320756223,1711546257963,-849.29,0.00055342,120]
[320756224,1711546257972,-3365.88,0.00055342,120]
[320756225,1711546257981,-500.0,0.00055342,120]
[320756226,1711546257991,-2161.42,0.00055342,120]
[320756227,1711546258000,-2493.43,0.00055342,120]
[320756228,1711546258009,-1340.55065721,0.00055342,120]
[320756229,1711546258023,-5161.71934279,0.00055342,120]
[320756230,1711546258033,-1118.56,0.00055342,120]
[320756231,1711546258042,-1903.01,0.00055342,120]
[320756232,1711546258052,-4032.81,0.00055342,120]
[320756233,1711546258061,-500.0,0.00055342,120]
[320756234,1711546258071,-2228.2,0.00055342,120]
[320756235,1711546258081,-3489.96,0.00055342,120]
[320756236,1711546258091,-1655.33,0.00055342,120]
[320756237,1711546258101,-2377.98,0.00055342,120]
[320756238,1711546258114,-2781.46,0.00055342,120]
[320756239,1711546258123,-809.96,0.00055342,120]
[320756240,1711546258133,-2002.63,0.00055342,120]
[320756241,1711546258142,-3535.71,0.00055342,120]
[320756242,1711546258152,-14759.77,0.00055342,120]
[320756243,1711546258161,-791.97,0.00055342,120]
[320756244,1711546258171,-500.0,0.00055342,120]
[320756245,1711546258180,-991.50652962,0.00055342,14]
[320756246,1711546258189,-1559.07,0.00055342,120]
[320756247,1711546258198,-3176.79,0.00055342,120]
[320756248,1711546258207,-500.0,0.00055342,120]
[320756249,1711546258216,-675.25,0.00055342,120]
[320756250,1711546258226,-2335.04,0.00055342,120]
[320756251,1711546258235,-500.0,0.00055342,120]
[320756252,1711546258245,-1775.74,0.00055342,120]
[320756253,1711546258254,-4505.08,0.00055342,120]
[320756254,1711546258264,-8601.47722738,0.00055342,120]
[320756255,1711546258297,-273.0,0.00051214,2]
[320756256,1711546258306,-2221.39277262,0.00055342,120]
[320756257,1711546258316,-500.0,0.00055342,120]
[320756258,1711546258326,-780.73,0.00055342,120]
[320756259,1711546258337,-619.17,0.00055342,120]
[320756260,1711546258350,-703.7,0.00055342,120]
[320756261,1711546258363,-4740.44,0.00055342,120]
[320756262,1711546258378,-1735.73,0.00055342,120]
[320756263,1711546258388,-4178.06,0.00055342,120]
[320756264,1711546258398,-2218.02,0.00055342,120]
[320756265,1711546258410,-557.85,0.00055342,120]
[320756266,1711546258420,-1843.95,0.00055342,120]
[320756267,1711546258429,-2753.07,0.00055342,120]
[320756268,1711546258439,-1883.62,0.00055342,120]
[320756269,1711546258451,-4513.67,0.00055342,120]
[320756270,1711546258462,-500.0,0.00055342,120]
[320756271,1711546258471,-30769.88,0.00055342,120]
[320756272,1711546258481,-1877.07,0.00055342,120]
[320756273,1711546258490,-500.0,0.00055342,120]
[320756274,1711546258500,-1576.26,0.00055342,120]
[320756275,1711546258509,-990.99,0.00055342,120]
[320756276,1711546258518,-1131.33,0.00055342,120]
[320756277,1711546258528,-500.0,0.00055342,120]
[320756278,1711546258537,-3993.02,0.00055342,120]
[320756279,1711546258546,-660.85,0.00055342,120]
[320756280,1711546258555,-1247.94,0.00055342,120]
[320756281,1711546258564,-3155.02,0.00055342,120]
[320756282,1711546258574,-329.39231279,0.00055342,120]
[320756283,1711546258598,-6933.84000002,0.00055342,120]
[320756284,1711546258627,-635.4,0.00054794,120]
[320756285,1711546258636,-2692.18768719,0.00055342,120]
[320756286,1711546258645,-500.0,0.00055342,120]
[320756287,1711546258655,-605.7,0.00055342,120]
[320756288,1711546258665,-1396.99,0.00055342,120]
[320756289,1711546258674,-1283.12231281,0.00055342,120]
[320756290,1711546258692,-1223.42992465,0.00055342,120]
[320756291,1711546258703,-357.0567,0.00055342,120]
[320756292,1711546258790,-266.21175816,0.00055342,120]
[320756293,1711546258801,-196.50930438,0.00055342,120]
[320756294,1711546258810,-898.91896596,0.00055342,120]
[320756295,1711546258822,-5962.73103404,0.00055342,120]
[320756296,1711546258831,-500.0,0.00055342,120]
[320756297,1711546258841,-5687.51765872,0.00055342,120]
[320756298,1711546258852,-712.8928,0.00055342,120]
[320756299,1711546258867,-286.083,0.00055342,120]
[320756300,1711546258878,-2300.60654128,0.00055342,120]
[320756301,1711546258887,-1345.91959972,0.00055342,120]
[320756302,1711546259787,-150.0,0.00054214,2]
[320756303,1711546259797,-650.42134017,0.00054695,120]
[320756304,1711546259807,-635.4,0.00055068,120]
[320756305,1711546259816,-1613.92464555,0.00055342,120]
[320756306,1711546259832,-1610.64575473,0.00055342,120]
[320756307,1711546259841,-4124.1,0.00055342,120]
[320756308,1711546259850,-595.93,0.00055342,120]
[320756309,1711546259860,-531.49,0.00055342,120]
[320756310,1711546259869,-2890.55,0.00055342,120]
[320756311,1711546259878,-500.0,0.00055342,7]
[320756312,1711546259888,-13989.32,0.00055342,120]
[320756313,1711546259897,-500.0,0.00055342,120]
[320756314,1711546259906,-1228.94,0.00055342,120]
[320756315,1711546259915,-4679.66,0.00055342,120]
[320756316,1711546259925,-500.0,0.00055342,120]
[320756317,1711546259934,-3271.7,0.00055342,120]
[320756318,1711546259944,-41795.23,0.00055342,120]
[320756319,1711546259954,-2282.57,0.00055342,120]
[320756320,1711546259963,-5627.49,0.00055342,120]
[320756321,1711546259972,-500.0,0.00055342,120]
[320756322,1711546259981,-500.0,0.00055342,120]
[320756323,1711546259991,-569.04,0.00055342,120]
[320756324,1711546260000,-5592.75,0.00055342,120]
[320756325,1711546260009,-761.08,0.00055342,120]
[320756326,1711546260019,-3670.01,0.00055342,120]
[320756327,1711546260028,-500.0,0.00055342,120]
[320756328,1711546260038,-3639.14,0.00055342,120]
[320756329,1711546260048,-7743.51,0.00055342,120]
[320756330,1711546260058,-500.0,0.00055342,120]
[320756331,1711546260069,-2679.29,0.00055342,120]
[320756332,1711546260080,-657.93,0.00055342,120]
[320756333,1711546260090,-1839.6,0.00055342,120]
[320756334,1711546260099,-1315.57,0.00055342,120]
[320756335,1711546260111,-4254.04,0.00055342,120]
[320756336,1711546260121,-500.0,0.00055342,120]
[320756337,1711546260130,-500.0,0.00055342,85]
[320756338,1711546260139,-10846.92,0.00055342,120]
[320756339,1711546260148,-1768.16,0.00055342,120]
[320756340,1711546260158,-22986.29,0.00055342,120]
[320756341,1711546260168,-500.0,0.00055342,120]
[320756342,1711546260177,-3432.06,0.00055342,120]
[320756343,1711546260187,-3495.69,0.00055342,120]
[320756344,1711546260197,-1982.01,0.00055342,120]
[320756345,1711546260206,-11789.75,0.00055342,120]
[320756346,1711546260216,-3095.23,0.00055342,120]
[320756347,1711546260225,-1112.01,0.00055342,120]
[320756348,1711546260235,-1435.37,0.00055342,120]
[320756349,1711546260244,-500.0,0.00055342,120]
[320756350,1711546260253,-1604.22,0.00055342,120]
[320756351,1711546260262,-749.83,0.00055342,120]
[320756352,1711546260272,-10818.47,0.00055342,120]
[320756353,1711546260281,-2521.22,0.00055342,120]
[320756354,1711546260291,-2149.13,0.00055342,120]
[320756355,1711546260300,-500.0,0.00055342,120]
[320756356,1711546260309,-2348.74,0.00055342,120]
[320756357,1711546260318,-1451.12,0.00055342,21]
[320756358,1711546260327,-3081.76,0.00055342,120]
[320756359,1711546260337,-1180.95,0.00055342,120]
[320756360,1711546260346,-857.15,0.00055342,120]
[320756361,1711546260354,-2669.46,0.00055342,120]
[320756362,1711546260368,-500.0,0.00055342,120]
[320756363,1711546260377,-2272.11,0.00055342,120]
[320756364,1711546260385,-1352.32,0.00055342,120]
[320756365,1711546260394,-500.0,0.00055342,120]
[320756366,1711546260403,-5503.0,0.00055342,120]
[320756367,1711546260414,-5598.25,0.00055342,120]
[320756368,1711546260423,-961.23,0.00055342,120]
[320756369,1711546260432,-2143.06,0.00055342,120]
[320756370,1711546260442,-2082.08,0.00055342,120]
[320756371,1711546260452,-815.9,0.00055342,120]
[320756372,1711546260462,-1368.84,0.00055342,120]
[320756373,1711546260471,-500.0,0.00055342,120]
[320756374,1711546260481,-1928.38,0.00055342,120]
[320756375,1711546260491,-3011.32,0.00055342,120]
[320756376,1711546260501,-793.86,0.00055342,120]
[320756377,1711546260510,-1368.28,0.00055342,120]
[320756378,1711546260519,-500.0,0.00055342,120]
[320756379,1711546260529,-7556.18,0.00055342,120]
[320756380,1711546260538,-581.46,0.00055342,120]
[320756381,1711546260547,-697.38,0.00055342,120]
[320756382,1711546260558,-500.0,0.00055342,120]
[320756383,1711546260567,-2503.39,0.00055342,120]
[320756384,1711546260578,-500.0,0.00055342,120]
[320756385,1711546260587,-8529.57,0.00055342,120]
[320756386,1711546260596,-536.2,0.00055342,120]
[320756387,1711546260606,-1917.65,0.00055342,120]
[320756388,1711546260621,-525.48,0.00055342,120]
[320756389,1711546260631,-759.45,0.00055342,120]
[320756390,1711546260640,-1477.82,0.00055342,120]
[320756391,1711546260649,-1223.91,0.00055342,120]
[320756392,1711546260660,-825.56,0.00055342,120]
[320756393,1711546260670,-1436.23,0.00055342,120]
[320756394,1711546260680,-1324.17,0.00055342,120]
[320756395,1711546260690,-500.0,0.00055342,120]
[320756396,1711546260700,-343.27803373,0.00055342,120]
[320756397,1711546260709,-2816.8,0.00055342,120]
[320756398,1711546260719,-1465.89,0.00055342,120]
[320756399,1711546260728,-500.0,0.00055342,120]
[320756400,1711546260738,-1390.99,0.00055342,120]
[320756401,1711546260748,-500.0,0.00055342,120]
[320756402,1711546260758,-2196.4,0.00055342,120]
[320756403,1711546260768,-1853.28,0.00055342,120]
[320756404,1711546260778,-500.0,0.00055342,120]
[320756405,1711546260788,-879.78,0.00055342,120]
[320756406,1711546260797,-683.41,0.00055342,120]
[320756407,1711546260807,-2070.24,0.00055342,120]
[320756408,1711546260817,-500.0,0.00055342,120]
[320756409,1711546260826,-5083.4,0.00055342,120]
[320756410,1711546260837,-500.0,0.00055342,120]
[320756411,1711546260847,-500.0,0.00055342,120]
[320756412,1711546260857,-2530.28,0.00055342,120]
[320756413,1711546260872,-677.34,0.00055342,120]
[320756414,1711546260883,-2419.47,0.00055342,120]
[320756415,1711546260892,-500.0,0.00055342,120]
[320756416,1711546260902,-1297.52,0.00055342,120]
[320756417,1711546260911,-384.19,0.00055342,120]
[320756418,1711546260921,-3660.16,0.00055342,120]
[320756419,1711546260931,-500.0,0.00055342,120]
[320756420,1711546260940,-790.69,0.00055342,120]
[320756421,1711546260950,-500.0,0.00055342,120]
[320756422,1711546260960,-635.4,0.00055342,120]
[320756423,1711546260969,-263.53012624,0.0005544,54]
[320756424,1711546260978,-382.29077323,0.00055443,2]
[320756425,1711546260988,-2500.0,0.00055479,120]
[320756426,1711546260997,-2500.0,0.00055479,120]
[320756427,1711546261007,-2500.0,0.00055479,120]
[320756428,1711546261016,-2500.0,0.00055479,120]
[320756429,1711546261025,-1655.29039042,0.00055479,120]
[320756430,1711546261036,-4200.1962656,0.00055535,2]
[320756431,1711546261045,-304.14110194,0.00055535,2]
[320756432,1711546261057,-11953.00323256,0.00055541,33]
[320756433,1711546261075,-60043.83051263,0.0005555,120]
[320756434,1711546261089,-151.70976866,0.0005557,120]
[320756435,1711546261103,-1621.055,0.00055616,120]
[320756436,1711546261120,-200.0,0.00055616,120]
[320756437,1711546261136,-500.0,0.00055616,120]
[320756438,1711546261152,-500.0,0.00055616,120]
[320756439,1711546261167,-500.0,0.00055616,120]
[320756440,1711546261181,-500.0,0.00055616,120]
[320756441,1711546261193,-500.0,0.00055616,120]
[320756442,1711546261208,-626.37,0.00055616,120]
[320756443,1711546261223,-500.0,0.00055616,120]
[320756444,1711546261236,-500.0,0.00055616,120]
[320756445,1711546261252,-708.09,0.00055616,120]
[320756446,1711546261264,-500.0,0.00055616,120]
[320756447,1711546261278,-500.0,0.00055616,120]
[320756448,1711546261292,-500.0,0.00055616,120]
[320756449,1711546261306,-543.86,0.00055616,120]
[320756450,1711546261320,-500.0,0.00055616,120]
[320756451,1711546261333,-500.0,0.00055616,120]
[320756452,1711546261346,-500.0,0.00055616,120]
[320756453,1711546261364,-500.0,0.00055616,120]
[320756454,1711546261380,-500.0,0.00055616,120]
[320756455,1711546261394,-500.0,0.00055616,120]
[320756456,1711546261407,-500.0,0.00055616,120]
[320756457,1711546261419,-500.0,0.00055616,120]
[320756458,1711546261430,-500.0,0.00055616,120]
[320756459,1711546261444,-500.0,0.00055616,120]
[320756460,1711546261457,-500.0,0.00055616,120]
[320756461,1711546261471,-735.73,0.00055616,120]
[320756462,1711546261482,-508.5,0.00055616,120]
[320756463,1711546261494,-500.0,0.00055616,120]
[320756464,1711546261506,-608.18,0.00055616,120]
[320756465,1711546261518,-500.0,0.00055616,120]
[320756466,1711546261530,-500.0,0.00055616,120]
[320756467,1711546261544,-500.0,0.00055616,120]
[320756468,1711546261556,-1843.65,0.00055616,120]
[320756469,1711546261568,-500.0,0.00055616,120]
[320756470,1711546261581,-224.42,0.00055616,120]
[320756471,1711546261593,-500.0,0.00055616,120]
[320756472,1711546261606,-510.94,0.00055616,60]
[320756473,1711546261624,-500.0,0.00055616,120]
[320756474,1711546261636,-500.0,0.00055616,120]
[320756475,1711546261648,-500.0,0.00055616,120]
[320756476,1711546261661,-696.37,0.00055616,120]
[320756477,1711546261673,-500.0,0.00055616,120]
[320756478,1711546261687,-500.0,0.00055616,120]
[320756479,1711546261699,-500.0,0.00055616,120]
[320756480,1711546261711,-1625.34,0.00055616,120]
[320756481,1711546261724,-500.0,0.00055616,120]
[320756482,1711546261737,-316.46588169,0.00055616,120]
[320756483,1711546261750,-500.0,0.00055616,120]
[320756484,1711546261763,-500.0,0.00055616,120]
[320756485,1711546261775,-500.0,0.00055616,120]
[320756486,1711546261788,-500.0,0.00055616,120]
[320756487,1711546261799,-500.0,0.00055616,120]
[320756488,1711546261812,-500.0,0.00055616,120]
[320756489,1711546261825,-500.0,0.00055616,120]
[320756490,1711546261838,-500.0,0.00055616,120]
[320756491,1711546261850,-500.0,0.00055616,120]
[320756492,1711546261868,-500.0,0.00055616,120]
[320756493,1711546261879,-528.3,0.00055616,120]
[320756494,1711546261892,-500.0,0.00055616,120]
[320756495,1711546261904,-500.0,0.00055616,120]
[320756496,1711546261916,-500.0,0.00055616,120]
[320756497,1711546261927,-500.0,0.00055616,120]
[320756498,1711546261940,-500.0,0.00055616,120]
[320756499,1711546261951,-656.03,0.00055616,120]
[320756500,1711546261963,-500.0,0.00055616,120]
[320756501,1711546261975,-500.0,0.00055616,120]
[320756502,1711546261987,-1286.21,0.00055616,120]
[320756503,1711546261999,-1035.35,0.00055616,120]
[320756504,1711546262012,-1349.26,0.00055616,120]
[320756505,1711546262024,-500.0,0.00055616,120]
[320756506,1711546262036,-500.0,0.00055616,120]
[320756507,1711546262049,-500.0,0.00055616,120]
[320756508,1711546262062,-725.7,0.00055616,120]
[320756509,1711546262074,-500.0,0.00055616,120]
[320756510,1711546262087,-500.0,0.00055616,120]
[320756511,1711546262099,-500.0,0.00055616,120]
[320756512,1711546262115,-500.0,0.00055616,120]
[320756513,1711546262127,-720.29,0.00055616,120]
[320756514,1711546262140,-510.39377398,0.00055616,120]
[320756515,1711546262153,-500.0,0.00055616,120]
[320756516,1711546262167,-500.0,0.00055616,120]
[320756517,1711546262181,-679.92,0.00055616,120]
[320756518,1711546262195,-354.80018238,0.00055616,120]
[320756519,1711546262209,-500.0,0.00055616,120]
[320756520,1711546262222,-518.87,0.00055616,120]
[320756521,1711546262234,-500.0,0.00055616,120]
[320756522,1711546262248,-500.0,0.00055616,120]
[320756523,1711546262260,-1000.0,0.00055616,120]
[320756524,1711546262273,-500.0,0.00055616,120]
[320756525,1711546262286,-560.6,0.00055616,120]
[320756526,1711546262299,-712.56,0.00055616,120]
[320756527,1711546262311,-500.0,0.00055616,120]
[320756528,1711546262324,-702.36,0.00055616,120]
[320756529,1711546262335,-264.46549993,0.00055616,120]
[320756530,1711546262348,-539.02,0.00055616,120]
[320756531,1711546262361,-494.04,0.00055616,120]
[320756532,1711546262380,-500.0,0.00055616,120]
[320756533,1711546262394,-500.0,0.00055616,120]
[320756534,1711546262408,-500.0,0.00055616,120]
[320756535,1711546262420,-500.0,0.00055616,120]
[320756536,1711546262430,-500.0,0.00055616,120]
[320756537,1711546262441,-500.0,0.00055616,120]
[320756538,1711546262450,-500.0,0.00055616,120]
[320756539,1711546262461,-731.02,0.00055616,120]
[320756540,1711546262471,-500.0,0.00055616,120]
[320756541,1711546262480,-500.0,0.00055616,120]
[320756542,1711546262489,-652.69,0.00055616,120]
[320756543,1711546262499,-1364.67,0.00055616,120]
[320756544,1711546262509,-500.0,0.00055616,120]
[320756545,1711546262518,-888.28,0.00055616,120]
[320756546,1711546262528,-22.10688152,0.00055616,120]
[320756547,1711546262546,-1549.05311848,0.00055616,120]
[320756548,1711546262555,-524.2,0.00055616,120]
[320756549,1711546262565,-788.85,0.00055616,120]
[320756550,1711546262574,-500.0,0.00055616,120]
[320756551,1711546262583,-500.0,0.00055616,120]
[320756552,1711546262593,-606.55,0.00055616,120]
[320756553,1711546262603,-500.0,0.00055616,120]
[320756554,1711546262615,-500.0,0.00055616,120]
[320756555,1711546262624,-500.0,0.00055616,120]
[320756556,1711546262634,-500.0,0.00055616,120]
[320756557,1711546262643,-979.53,0.00055616,120]
[320756558,1711546262653,-500.0,0.00055616,120]
[320756559,1711546262662,-546.29,0.00055616,120]
[320756560,1711546262671,-523.62,0.00055616,120]
[320756561,1711546262681,-735.73,0.00055616,120]
[320756562,1711546262691,-1430.03,0.00055616,120]
[320756563,1711546262700,-500.0,0.00055616,120]
[320756564,1711546262710,-500.0,0.00055616,120]
[320756565,1711546262719,-512.99,0.00055616,120]
[320756566,1711546262730,-500.0,0.00055616,120]
[320756567,1711546262739,-318.2,0.00055616,120]
[320756568,1711546262748,-655.53,0.00055616,120]
[320756569,1711546262757,-643.82,0.00055616,120]
[320756570,1711546262767,-500.0,0.00055616,120]
[320756571,1711546262776,-945.38,0.00055616,120]
[320756572,1711546262785,-500.0,0.00055616,120]
[320756573,1711546262794,-561.63,0.00055616,30]
[320756574,1711546262803,-500.0,0.00055616,120]
[320756575,1711546262813,-500.0,0.00055616,120]
[320756576,1711546262822,-500.0,0.00055616,120]
[320756577,1711546262831,-481.46013652,0.00055616,120]
[320756578,1711546262840,-500.0,0.00055616,120]
[320756579,1711546262850,-1344.28,0.00055616,120]
[320756580,1711546262859,-500.0,0.00055616,120]
[320756581,1711546262874,-516.2608201,0.00055616,120]
[320756582,1711546262883,-500.0,0.00055616,120]
[320756583,1711546263268,-988.46,0.00055616,120]
[320756584,1711546263288,-500.0,0.00055616,120]
[320756585,1711546263306,-500.0,0.00055616,120]
[320756586,1711546263316,-500.0,0.00055616,120]
[320756587,1711546263325,-600.1,0.00055616,120]
[320756588,1711546263334,-557.47,0.00055616,120]
[320756589,1711546263344,-500.0,0.00055616,120]
[320756590,1711546263353,-500.25,0.00055616,120]
[320756591,1711546263364,-500.0,0.00055616,120]
[320756592,1711546263375,-500.0,0.00055616,120]
[320756593,1711546263384,-567.33,0.00055616,120]
[320756594,1711546263393,-500.0,0.00055616,120]
[320756595,1711546263403,-500.0,0.00055616,120]
[320756596,1711546263414,-500.0,0.00055616,120]
[320756597,1711546263423,-1394.47,0.00055616,120]
[320756598,1711546263432,-590.16,0.00055616,120]
[320756599,1711546263441,-500.0,0.00055616,120]
[320756600,1711546263450,-500.0,0.00055616,120]
[320756601,1711546263459,-500.0,0.00055616,120]
[320756602,1711546263468,-500.0,0.00055616,120]
[320756603,1711546263477,-500.0,0.00055616,120]
[320756604,1711546263487,-500.0,0.00055616,120]
[320756605,1711546263498,-500.0,0.00055616,120]
[320756606,1711546263508,-511.0,0.00055616,120]
[320756607,1711546263517,-500.0,0.00055616,120]
[320756608,1711546263526,-500.0,0.00055616,120]
[320756609,1711546263535,-365.93,0.00055616,120]
[320756610,1711546263544,-710.04,0.00055616,120]
[320756611,1711546263554,-511.86320981,0.00055616,120]
[320756612,1711546263562,-542.11,0.00055616,120]
[320756613,1711546263573,-500.0,0.00055616,120]
[320756614,1711546263582,-506.08,0.00055616,120]
[320756615,1711546263592,-500.0,0.00055616,120]
[320756616,1711546263601,-500.0,0.00055616,120]
[320756617,1711546263612,-626.43,0.00055616,120]
[320756618,1711546263622,-500.0,0.00055616,120]
[320756619,1711546263632,-500.0,0.00055616,120]
[320756620,1711546263641,-500.0,0.00055616,120]
[320756621,1711546263654,-1563.81,0.00055616,120]
[320756622,1711546263664,-500.0,0.00055616,120]
[320756623,1711546263674,-500.0,0.00055616,120]
[320756624,1711546263683,-500.0,0.00055616,120]
[320756625,1711546263693,-796.05,0.00055616,120]
[320756626,1711546263702,-531.42,0.00055616,120]
[320756627,1711546263712,-722.74,0.00055616,120]
[320756628,1711546263721,-500.0,0.00055616,120]
[320756629,1711546263731,-1302.25,0.00055616,120]
[320756630,1711546263740,-500.0,0.00055616,120]
[320756631,1711546263749,-500.0,0.00055616,120]
[320756632,1711546263759,-500.0,0.00055616,120]
[320756633,1711546263768,-507.66,0.00055616,120]
[320756634,1711546263778,-1249.7,0.00055616,120]
[320756635,1711546263787,-571.88591626,0.00055616,120]
[320756636,1711546263796,-309.0827872,0.00055616,120]
[320756637,1711546263805,-500.0,0.00055616,120]
[320756638,1711546263814,-629.16,0.00055616,120]
[320756639,1711546263824,-684.28,0.00055616,120]
[320756640,1711546263833,-536.56,0.00055616,120]
[320756641,1711546263843,-653.48,0.00055616,120]
[320756642,1711546263853,-500.0,0.00055616,120]
[320756643,1711546263867,-500.0,0.00055616,120]
[320756644,1711546263877,-500.0,0.00055616,120]
[320756645,1711546263887,-500.0,0.00055616,120]
[320756646,1711546263897,-500.0,0.00055616,120]
[320756647,1711546263908,-500.0,0.00055616,120]
[320756648,1711546263918,-1486.24,0.00055616,120]
[320756649,1711546263927,-1283.94,0.00055616,120]
[320756650,1711546263937,-500.0,0.00055616,120]
[320756651,1711546263947,-500.0,0.00055616,120]
[320756652,1711546263957,-913.76,0.00055616,120]
[320756653,1711546263967,-500.0,0.00055616,120]
[320756654,1711546263979,-754.35,0.00055616,120]
[320756655,1711546263989,-500.0,0.00055616,120]
[320756656,1711546264000,-21873.43,0.00055616,120]
[320756657,1711546264010,-860.18,0.00055616,120]
[320756658,1711546264021,-1916.66,0.00055616,120]
[320756659,1711546264030,-252.0,0.00055616,120]
[320756660,1711546264039,-500.0,0.00055616,120]
[320756661,1711546264049,-2119.71,0.00055616,120]
[320756662,1711546264059,-822.03,0.00055616,120]
[320756663,1711546264069,-500.0,0.00055616,120]
[320756664,1711546264079,-500.0,0.00055616,120]
[320756665,1711546264090,-619.23,0.00055616,120]
[320756666,1711546264100,-1003.22,0.00055616,120]
[320756667,1711546264113,-682.74,0.00055616,120]
[320756668,1711546264126,-500.0,0.00055616,120]
[320756669,1711546264137,-4248.24,0.00055616,120]
[320756670,1711546264150,-52410.75,0.00055616,120]
[320756671,1711546264160,-1019.67,0.00055616,120]
[320756672,1711546264171,-3268.76,0.00055616,120]
[320756673,1711546264182,-849.29,0.00055616,120]
[320756674,1711546264192,-3365.88,0.00055616,120]
[320756675,1711546264202,-500.0,0.00055616,120]
[320756676,1711546264212,-2493.43,0.00055616,120]
[320756677,1711546264222,-6502.27,0.00055616,120]
[320756678,1711546264233,-1118.56,0.00055616,120]
[320756679,1711546264242,-1903.01,0.00055616,120]
[320756680,1711546264252,-4032.81,0.00055616,120]
[320756681,1711546264261,-500.0,0.00055616,120]
[320756682,1711546264271,-3489.96,0.00055616,120]